bitfinex/quotes_ETHUSD_20250904
["timestamp","ask_amount","ask_price","bid_price","bid_amount"]
[1757018617181,1.27343309,4309.8,4309.7,5.603]
[1757018619002,1.27343309,4309.8,4309.7,1.71]
[1757018619208,1.27343309,4309.8,4309.7,5.607]
[1757018620506,3.59372637,4309.8,4309.7,5.607]
[1757018620802,1.27343309,4309.8,4309.7,5.607]
[1757018623210,1.24603309,4309.8,4309.7,5.607]
[1757018623405,1.24603309,4309.8,4309.7,1.71]
[1757018623708,1.24603309,4309.8,4309.7,5.606]
[1757018624591,1.24603309,4309.8,4309.7,5.605]
[1757018624807,0.81583309,4309.8,4309.7,5.605]
[1757018625106,0.50103309,4309.8,4309.7,5.605]
[1757018625881,0.50103309,4309.8,4309.7,10.07436517]
[1757018626193,1.21793309,4309.8,4309.7,5.606]
[1757018626399,0.50103309,4309.8,4309.7,6.3665]
[1757018626606,0.50103309,4309.8,4309.7,8.68684712]
[1757018627003,0.50103309,4309.8,4309.7,6.3665]
[1757018629918,0.78773309,4309.8,4309.7,5.606]
[1757018630707,0.50103309,4309.8,4309.7,5.9107]
[1757018630912,0.50103309,4309.8,4309.7,6.3665]
[1757018634601,0.50103309,4309.8,4309.7,5.606]
[1757018638929,0.50103309,4309.8,4309.7,6.97684712]
[1757018639236,0.50103309,4309.8,4309.7,4.6565]
[1757018639438,0.50103309,4309.8,4309.7,6.97684712]
[1757018639838,0.50103309,4309.8,4309.7,4.6565]
[1757018640030,0.50103309,4309.8,4309.7,7.90089181]
[1757018640348,0.50103309,4309.8,4309.7,8.01689181]
[1757018642105,0.50103309,4309.8,4309.7,7.58289181]
[1757018642822,0.50103309,4309.8,4309.7,8.01689181]
[1757018644618,0.50103309,4309.8,4309.7,10.38689181]
[1757018645014,0.50103309,4309.8,4309.7,9.95289181]
[1757018647938,0.50103309,4309.8,4309.7,10.38689181]
[1757018650749,0.50103309,4309.8,4309.7,9.95289181]
[1757018651119,0.80353309,4309.8,4309.7,4.50204469]
[1757018651319,1.25653309,4309.8,4309.6,0.004]
[1757018651540,0.95303309,4309.7,4309.6,0.004]
[1757018651736,0.95303309,4309.7,4309.6,3.891]
[1757018651941,1.25553309,4309.7,4309.6,3.891]
[1757018652566,1.25553309,4309.7,4309.6,6.21140096]
[1757018653335,0.80253309,4309.7,4309.6,6.21140096]
[1757018653529,1.25553309,4309.7,4309.6,6.21140096]
[1757018655628,0.80253309,4309.7,4309.6,2.32440096]
[1757018655832,0.80253309,4309.7,4309.6,6.21040096]
[1757018656256,1.25553309,4309.7,4309.6,3.89]
[1757018658672,1.25553309,4309.7,4309.6,0.004]
[1757018658833,1.25553309,4309.7,4309.6,3.889]
[1757018660564,1.25553309,4309.7,4309.6,3.888]
[1757018661476,1.72283309,4309.7,4309.6,3.888]
[1757018662242,0.50003309,4309.7,4309.6,7.45860096]
[1757018662466,0.50003309,4309.7,4309.6,6.99640096]
[1757018662664,0.50003309,4309.7,4309.6,7.45860096]
[1757018663169,0.50003309,4309.7,4309.6,8.6199109]
[1757018663780,0.50003309,4309.7,4309.6,8.1577109]
[1757018666579,0.50003309,4309.7,4309.6,1.16530994]
[1757018666877,0.80253309,4309.7,4309.6,3.888]
[1757018667575,0.80253309,4309.7,4309.6,6.20840096]
[1757018667960,0.80253309,4309.7,4309.6,3.888]
[1757018668484,0.80253309,4309.7,4309.6,6.20840096]
[1757018669083,0.50003309,4309.7,4309.6,6.20840096]
[1757018669264,0.50003309,4309.7,4309.6,3.888]
[1757018670196,1.25553309,4309.7,4309.6,0.004]
[1757018670484,4.15918021,4309.7,4309.6,3.887]
[1757018671186,1.83883309,4309.7,4309.6,3.887]
[1757018671775,4.15918021,4309.7,4309.6,3.887]
[1757018671978,4.15918021,4309.7,4309.6,0.004]
[1757018673956,7.95118021,4309.7,4309.6,0.004]
[1757018674166,11.71718021,4309.7,4309.6,0.004]
[1757018674383,2.3204548,4309.5,4309.4,0.004]
[1757018674687,5.82048789,4309.5,4309.4,0.004]
[1757018674889,7.04328789,4309.5,4309.4,0.004]
[1757018677778,6.57598789,4309.5,4309.4,0.004]
[1757018679702,6.805692,4309.5,4309.4,0.004]
[1757018680015,10.45998789,4309.5,4309.4,0.004]
[1757018682748,10.46228789,4309.5,4309.4,0.004]
[1757018684008,11.83008789,4309.5,4309.4,0.004]
[1757018687531,18.76149843,4309.5,4309.4,0.004]
[1757018691257,18.30169843,4309.5,4309.4,0.004]
[1757018693132,17.84339843,4309.5,4309.4,0.004]
[1757018693451,16.80484732,4309.5,4309.4,0.004]
[1757018693958,17.26014732,4309.5,4309.4,0.004]
[1757018696380,3.11250865,4309.4,4309.3,0.004]
[1757018696587,3.61254174,4309.4,4309.3,0.004]
[1757018696794,3.91484174,4309.4,4309.3,0.004]
[1757018696995,4.37014174,4309.4,4309.3,0.004]
[1757018700799,4.82994174,4309.4,4309.3,0.004]
[1757018701108,4.37014174,4309.4,4309.3,0.004]
[1757018702103,3.91484174,4309.4,4309.3,0.004]
[1757018702597,6.1125625,4309.3,4309.2,0.004]
[1757018702896,10.49359559,4309.3,4309.2,0.004]
[1757018703396,10.79589559,4309.3,4309.2,0.004]
[1757018705059,11.25119559,4309.3,4309.2,0.004]
[1757018707592,12.92181255,4309.3,4309.2,0.004]
[1757018708293,11.25119559,4309.3,4309.2,0.004]
[1757018708481,6.11261635,4309.2,4309.0,0.004]
[1757018708681,14.29338411,4309.2,4309.0,0.004]
[1757018708990,15.01338411,4309.2,4309.0,0.004]
[1757018711505,11.21374507,4308.7,4308.6,0.4595]
[1757018711726,5.32093951,4308.6,4308.3,0.4951]
[1757018711912,5.9369726,4308.6,4308.3,0.4951]
[1757018713734,5.9369726,4308.6,4308.5,0.8072]
[1757018713936,5.9369726,4308.6,4308.5,1.2607]
[1757018717723,5.93866448,4308.6,4308.5,0.8072]
[1757018718563,5.93866448,4308.6,4308.5,0.004]
[1757018718775,15.52492391,4308.6,4308.5,1e-08]
[1757018718922,15.52492391,4308.6,4307.8,0.025]
[1757018718923,0.792,4308.0,4307.8,0.025]
[1757018719135,16.38890105,4307.9,4307.8,0.025]
[1757018719332,16.38890105,4307.9,4307.8,1e-08]
[1757018719333,17.10890105,4307.9,4307.8,1e-08]
[1757018719569,18.35117719,4307.9,4307.8,1e-08]
[1757018719741,13.38747465,4307.9,4307.8,0.30810001]
[1757018719944,5.82304162,4307.9,4307.8,0.80320001]
[1757018720162,5.93793402,4307.9,4307.8,0.80320001]
[1757018720338,10.10863402,4307.9,4307.8,1e-08]
[1757018720545,15.71179345,4307.9,4307.8,0.80320001]
[1757018720980,15.71179345,4307.9,4307.8,0.30810001]
[1757018721189,15.71179345,4307.9,4307.8,1e-08]
[1757018721333,5.93793402,4307.9,4307.8,0.80320001]
[1757018721532,15.71179345,4307.9,4307.8,0.80320001]
[1757018721749,15.71179345,4307.9,4307.8,1.25670001]
[1757018722090,0.50172497,4307.9,4307.8,1.25670001]
[1757018722273,0.50085288,4307.9,4307.8,1.38237001]
[1757018726052,0.50085288,4307.9,4307.8,1.25670001]
[1757018728909,0.61685288,4307.9,4307.8,1.25670001]
[1757018731398,0.50085288,4307.9,4307.8,0.80320001]
[1757018731599,2.82216953,4307.9,4307.8,0.80320001]
[1757018737153,0.50085288,4307.9,4307.8,1.25670001]
[1757018737429,2.82216953,4307.9,4307.8,0.80320001]
[1757018737626,2.82216953,4307.9,4307.8,0.49510001]
[1757018737861,2.82216953,4307.9,4307.8,1e-08]
[1757018739481,3.56826953,4307.9,4307.8,1e-08]
[1757018739626,3.11976953,4307.9,4307.8,1e-08]
[1757018740033,2.82216953,4307.9,4307.8,1e-08]
[1757018741129,2.82216953,4307.9,4307.8,0.00400001]
[1757018741130,4.81866953,4307.9,4307.8,0.00400001]
[1757018741371,7.93466953,4307.9,4307.8,0.00400001]
[1757018741529,2.32142442,4307.7,4307.6,0.004]
[1757018741733,15.59613673,4307.7,4307.6,0.004]
[1757018742068,16.80063673,4307.7,4307.6,0.004]
[1757018743366,16.34223673,4307.7,4307.6,0.004]
[1757018745043,16.80063673,4307.7,4307.6,0.004]
[1757018745262,16.34223673,4307.7,4307.6,0.004]
[1757018745635,10.0008773,4307.7,4307.6,0.004]
[1757018745835,15.89373673,4307.7,4307.6,0.004]
[1757018747444,15.59613673,4307.7,4307.6,0.004]
[1757018747850,15.89373673,4307.7,4307.6,0.004]
[1757018748851,15.59613673,4307.7,4307.6,0.004]
[1757018749242,15.89373673,4307.7,4307.6,0.004]
[1757018750174,16.34223673,4307.7,4307.6,0.004]
[1757018751642,10.4493773,4307.7,4307.6,0.004]
[1757018751866,16.34223673,4307.7,4307.6,0.004]
[1757018755486,10.4493773,4307.7,4307.6,0.004]
[1757018757498,9.7032773,4307.7,4307.6,0.7633]
[1757018758007,9.7032773,4307.7,4307.6,0.004]
[1757018758182,10.4493773,4307.7,4307.6,0.004]
[1757018758800,10.0008773,4307.7,4307.6,0.004]
[1757018759300,9.7032773,4307.7,4307.6,0.004]
[1757018759492,10.0008773,4307.7,4307.6,0.004]
[1757018759888,10.4493773,4307.7,4307.6,0.004]
[1757018762613,2.3215861,4307.4,4307.3,0.004]
[1757018762817,16.7605777,4307.4,4307.3,0.004]
[1757018763106,17.5066777,4307.4,4307.3,0.004]
[1757018763316,17.0581777,4307.4,4307.3,0.004]
[1757018763517,17.5066777,4307.4,4307.3,0.004]
[1757018764083,17.0581777,4307.4,4307.3,0.004]
[1757018765927,17.0581777,4307.4,4307.3,0.2948]
[1757018765928,3.61685288,4307.4,4307.3,0.2948]
[1757018766213,0.61685288,4307.4,4307.3,1.1964]
[1757018768429,0.61685288,4307.4,4307.3,0.7633]
[1757018768723,2.93843898,4307.4,4307.3,0.7633]
[1757018771832,0.61685288,4307.4,4307.3,0.7633]
[1757018772138,0.61685288,4307.4,4307.3,1.2319]
[1757018774116,2.93843898,4307.4,4307.3,1.2319]
[1757018774421,2.93843898,4307.4,4307.3,0.7633]
[1757018775037,3.25503898,4307.4,4307.3,0.004]
[1757018775329,0.61685288,4307.4,4307.3,1.263]
[1757018778342,0.50085288,4307.4,4307.3,3.70064]
[1757018778515,0.50085288,4307.4,4307.3,7.58164]
[1757018779452,0.001,4307.7,4307.6,2.32147831]
[1757018779639,0.5024988,4307.7,4307.6,3.48288351]
[1757018779945,0.5024988,4307.7,4307.6,4.74188351]
[1757018780661,0.5024988,4307.7,4307.6,4.85788351]
[1757018781016,0.5024988,4307.7,4307.6,5.8318052]
[1757018781017,0.50229693,4307.7,4307.6,5.8318052]
[1757018781217,0.81889693,4307.7,4307.6,3.88]
[1757018781522,0.61829693,4307.7,4307.6,3.88]
[1757018782040,0.61829693,4307.7,4307.6,5.139]
[1757018782244,0.61829693,4307.7,4307.6,4.6704]
[1757018783249,0.61829693,4307.7,4307.6,0.7904]
[1757018783445,2.93972473,4307.7,4307.3,2.2117]
[1757018783623,0.50129693,4307.6,4307.4,3.88]
[1757018783824,0.50129693,4307.5,4307.4,4.3767]
[1757018784031,0.50129693,4307.5,4307.4,4.6704]
[1757018787954,0.50129693,4307.5,4307.3,1.715]
[1757018787955,1.25769693,4307.5,4307.3,1.715]
[1757018788252,3.37868303,4307.4,4307.3,0.004]
[1757018788622,3.69528303,4307.4,4307.3,0.004]
[1757018789022,0.93389693,4307.4,4307.3,0.004]
[1757018789248,0.61729693,4307.4,4307.3,0.004]
[1757018791223,0.61729693,4307.4,4307.3,0.8176164]
[1757018791430,0.50129693,4307.4,4307.3,3.9155789]
[1757018791750,0.50129693,4307.4,4307.3,1.1253389]
[1757018792132,0.50129693,4307.4,4307.3,5.0053389]
[1757018792343,0.81789693,4307.4,4307.3,0.004]
[1757018792553,1.37369693,4307.4,4307.3,0.004]
[1757018792724,3.69528303,4307.4,4307.3,0.004]
[1757018793157,1.37369693,4307.4,4307.3,0.004]
[1757018793364,3.69528303,4307.4,4307.3,0.004]
[1757018797565,6.69528303,4307.4,4307.3,0.004]
[1757018798952,0.61729693,4307.4,4307.3,0.2937]
[1757018799181,0.61729693,4307.4,4307.3,1.1895]
[1757018799483,0.61729693,4307.4,4307.3,0.7517]
[1757018799647,3.23558303,4307.4,4307.3,0.004]
[1757018799842,1.35239693,4307.4,4307.3,0.004]
[1757018800253,0.91399693,4307.4,4307.3,0.004]
[1757018800770,0.91399693,4307.4,4307.3,0.7517]
[1757018800771,0.61729693,4307.4,4307.3,0.7517]
[1757018805167,0.61729693,4307.4,4307.3,0.004]
[1757018805879,0.61729693,4307.4,4307.3,0.7517]
[1757018807805,0.61729693,4307.4,4307.3,1.1895]
[1757018809412,0.61729693,4307.4,4307.3,0.7517]
[1757018809792,0.61729693,4307.4,4307.3,0.004]
[1757018814545,0.61729693,4307.4,4307.3,0.7517]
[1757018816440,0.61729693,4307.4,4307.3,0.004]
[1757018816648,3.23558303,4307.4,4307.3,0.004]
[1757018816937,0.91399693,4307.4,4307.3,0.004]
[1757018817840,1.35239693,4307.4,4307.3,0.004]
[1757018819203,0.91399693,4307.4,4307.3,0.004]
[1757018820240,3.23558303,4307.4,4307.3,0.004]
[1757018820429,0.91399693,4307.4,4307.3,0.004]
[1757018827991,0.61729693,4307.4,4307.3,0.004]
[1757018828285,0.61729693,4307.4,4307.3,0.7517]
[1757018832659,0.50129693,4307.4,4307.3,9.85997911]
[1757018835181,0.50129693,4307.4,4307.3,1.1746071]
[1757018835383,0.50129693,4307.4,4307.3,6.49764]
[1757018836076,0.50129693,4307.4,4307.3,4.6734]
[1757018836476,0.50129693,4307.4,4307.3,3.882]
[1757018836682,0.50129693,4307.4,4307.3,6.20364]
[1757018837756,0.50129693,4307.4,4307.3,6.49764]
[1757018837989,0.50129693,4307.4,4307.3,5.6073683]
[1757018838660,0.50129693,4307.4,4307.3,7.9290083]
[1757018839184,0.50155757,4307.4,4307.3,7.9290083]
[1757018841680,0.50155757,4307.4,4307.3,8.3963083]
[1757018843682,0.50155757,4307.4,4307.3,5.6073683]
[1757018843906,1.26595757,4307.4,4307.3,3.882]
[1757018845113,1.38195757,4307.4,4307.3,3.882]
[1757018846110,0.92555757,4307.4,4307.3,3.882]
[1757018846318,1.38195757,4307.4,4307.3,3.882]
[1757018848804,3.70354367,4307.4,4307.3,3.882]
[1757018849005,3.70354367,4307.4,4307.3,0.004]
[1757018849205,3.70354367,4307.4,4307.3,3.882]
[1757018850017,1.38195757,4307.4,4307.3,3.882]
[1757018850531,0.61755757,4307.4,4307.3,6.99504]
[1757018850686,0.61755757,4307.4,4307.3,8.98406054]
[1757018851108,0.50155757,4307.4,4307.3,9.10006054]
[1757018851416,0.001,4307.6,4307.3,9.10006054]
[1757018851417,0.001,4307.6,4307.5,2.32153221]
[1757018851584,0.50239692,4307.6,4307.5,13.82917954]
[1757018851780,0.50239692,4307.6,4307.5,15.06466422]
[1757018852085,0.50239692,4307.6,4307.5,17.02922245]
[1757018855391,0.50239692,4307.6,4307.5,17.53161937]
[1757018856126,0.001,4307.6,4307.5,17.53161937]
[1757018858151,0.50228219,4307.6,4307.5,19.90161937]
[1757018858446,0.001,4307.6,4307.5,19.90161937]
[1757018858820,0.50228457,4307.6,4307.5,19.43431937]
[1757018859033,0.50228457,4307.6,4307.5,13.53788736]
[1757018860506,0.50228457,4307.6,4307.5,12.74648736]
[1757018862071,0.50228457,4307.6,4307.5,13.53908736]
[1757018862777,0.50228457,4307.6,4307.5,19.89251937]
[1757018865572,0.50228457,4307.6,4307.5,19.43551937]
[1757018866394,0.50228457,4307.6,4307.5,18.64291937]
[1757018866599,0.81128457,4307.6,4307.5,18.64291937]
[1757018866793,0.50228457,4307.6,4307.5,18.64291937]
[1757018867009,0.50228457,4307.6,4307.5,19.43551937]
[1757018868195,0.50228457,4307.6,4307.5,17.06551937]
[1757018868489,0.001,4307.6,4307.5,17.63851937]
[1757018869569,0.001,4307.6,4307.5,20.00851937]
[1757018872784,0.001,4307.6,4307.5,19.55151937]
[1757018873092,0.001,4307.6,4307.5,17.18151937]
[1757018873287,0.001,4307.6,4307.5,17.63851937]
[1757018875585,0.001,4307.6,4307.5,20.00851937]
[1757018875804,0.001,4307.6,4307.5,17.63851937]
[1757018876390,0.001,4307.6,4307.5,17.18151937]
[1757018877879,0.31,4307.6,4307.5,16.38891937]
[1757018878706,0.001,4307.6,4307.5,16.38891937]
[1757018878910,0.001,4307.6,4307.5,18.75891937]
[1757018879108,0.001,4307.6,4307.5,19.05231937]
[1757018879409,0.001,4307.6,4307.5,19.55151937]
[1757018879579,0.001,4307.6,4307.5,13.65508736]
[1757018883479,0.001,4307.6,4307.5,14.11208736]
[1757018887615,0.001,4307.6,4307.5,13.65508736]
[1757018887814,0.001,4307.6,4307.5,14.11208736]
[1757018888117,0.001,4307.6,4307.5,13.65508736]
[1757018888522,0.001,4307.6,4307.5,12.86248736]
[1757018888718,0.31,4307.6,4307.5,12.86248736]
[1757018889017,0.001,4307.6,4307.5,15.86648736]
[1757018890834,0.001,4307.6,4307.5,16.62428736]
[1757018892632,0.7304,4307.6,4307.5,11.98948736]
[1757018892822,0.7304,4307.6,4307.5,13.89992913]
[1757018895520,0.7304,4307.6,4307.5,10.89992913]
[1757018895725,1.69235061,4307.6,4307.5,10.89992913]
[1757018896401,1.23215061,4307.6,4307.5,10.89992913]
[1757018896602,1.23215061,4307.6,4307.5,8.52992913]
[1757018897642,1.23215061,4307.6,4307.5,2.33339692]
[1757018897814,1.69235061,4307.6,4307.5,6.09239692]
[1757018898640,1.69235061,4307.6,4307.5,8.41392913]
[1757018898841,1.23215061,4307.6,4307.5,8.41392913]
[1757018899642,1.23215061,4307.6,4307.5,6.09239692]
[1757018899811,1.23215061,4307.6,4307.5,8.41392913]
[1757018901646,0.79205061,4307.6,4307.5,8.41392913]
[1757018902778,0.50275061,4307.6,4307.5,8.71812913]
[1757018903079,0.50275061,4307.6,4307.5,9.17172913]
[1757018903386,0.50275061,4307.6,4307.5,8.41392913]
[1757018903586,0.79205061,4307.6,4307.5,8.41392913]
[1757018905755,1.23215061,4307.6,4307.5,8.41392913]
[1757018908363,0.79205061,4307.6,4307.5,8.41392913]
[1757018908700,1.23215061,4307.6,4307.5,6.09239692]
[1757018909787,1.23215061,4307.6,4307.5,8.41392913]
[1757018911864,0.50275061,4307.6,4307.5,8.41392913]
[1757018912963,0.50275061,4307.6,4307.5,9.17172913]
[1757018914983,1.23215061,4307.6,4307.5,8.41392913]
[1757018916080,1.23037197,4307.6,4307.5,8.41392913]
[1757018917818,0.79027197,4307.6,4307.5,8.41392913]
[1757018918725,1.24787197,4307.6,4307.5,8.41392913]
[1757018918889,1.24787197,4307.6,4307.5,2.21739692]
[1757018919218,1.73697197,4307.6,4307.5,5.589]
[1757018919421,1.85297197,4307.6,4307.5,1.715]
[1757018919617,1.85297197,4307.6,4307.5,5.589]
[1757018920001,1.85297197,4307.6,4307.5,1.715]
[1757018920195,1.85297197,4307.6,4307.5,5.589]
[1757018920196,4.17445028,4307.6,4307.5,5.589]
[1757018921021,4.17445028,4307.6,4307.5,3.878]
[1757018921698,7.17445028,4307.6,4307.5,0.004]
[1757018922700,3.90627197,4307.6,4307.5,0.004]
[1757018923008,4.24587197,4307.6,4307.5,3.878]
[1757018924041,1.24687197,4307.6,4307.5,3.878]
[1757018927302,3.56835028,4307.6,4307.5,3.878]
[1757018927729,1.24687197,4307.6,4307.5,3.878]
[1757018929229,3.56835028,4307.6,4307.5,3.878]
[1757018929810,1.24687197,4307.6,4307.5,3.878]
[1757018931732,3.56835028,4307.6,4307.5,3.878]
[1757018931899,1.24687197,4307.6,4307.5,3.878]
[1757018932102,0.78927197,4307.6,4307.5,3.878]
[1757018932312,1.24687197,4307.6,4307.5,3.878]
[1757018933043,0.78927197,4307.6,4307.5,3.878]
[1757018933342,1.24687197,4307.6,4307.5,3.878]
[1757018936208,0.50197197,4307.6,4307.5,4.6249]
[1757018939783,0.78927197,4307.6,4307.5,3.878]
[1757018939937,0.50197197,4307.6,4307.5,4.1676]
[1757018940139,0.50197197,4307.6,4307.5,4.6249]
[1757018941072,0.50197197,4307.6,4307.5,5.0711]
[1757018941277,0.50197197,4307.6,4307.5,5.37617521]
[1757018941437,0.50197197,4307.6,4307.5,5.12687197]
[1757018945394,0.50197197,4307.6,4307.5,5.57307197]
[1757018946876,0.50197197,4307.6,4307.5,5.12687197]
[1757018947886,0.50197197,4307.6,4307.5,5.57307197]
[1757018948867,0.50197197,4307.6,4307.5,4.83727197]
[1757018949270,0.50197197,4307.6,4307.5,5.12567197]
[1757018949471,0.50197197,4307.6,4307.5,5.92869304]
[1757018950161,0.50197197,4307.6,4307.5,8.71312525]
[1757018952264,0.50197197,4307.6,4307.5,8.82912525]
[1757018952265,0.001,4307.6,4307.5,8.82912525]
[1757018963178,0.001,4307.6,4307.5,8.71312525]
[1757018963397,0.001,4307.6,4307.5,8.82912525]
[1757018965814,0.001,4307.6,4307.5,11.82912525]
[1757018966619,0.001,4307.6,4307.5,12.62112525]
[1757018966821,1e-08,4307.8,4307.7,2.32142442]
[1757018967117,1e-08,4307.8,4307.7,16.09165387]
[1757018967324,1e-08,4307.8,4307.7,17.30743963]
[1757018970792,1e-08,4307.8,4307.7,18.30847598]
[1757018978050,0.001,4308.1,4308.0,6.11326276]
[1757018978254,1e-08,4308.3,4308.2,3.113155]
[1757018978422,1e-08,4308.3,4308.2,10.29476655]
[1757018978625,1e-08,4308.3,4308.2,11.200155]
[1757018978827,1e-08,4308.3,4308.2,13.46806297]
[1757018979327,1e-08,4308.3,4308.2,13.56108633]
[1757018983952,1e-08,4308.3,4308.2,15.93108633]
[1757018987469,1e-08,4310.1,4310.0,2.32018561]
[1757018987670,0.001,4310.7,4310.3,0.792]
[1757018987832,0.4415,4310.5,4310.4,12.87662593]
[1757018988034,0.4415,4310.5,4310.4,12.20062593]
[1757018988235,0.7315,4310.5,4310.4,12.20062593]
[1757018988537,0.291,4310.5,4310.4,12.29360886]
[1757018988731,0.001,4310.5,4310.4,13.80045754]
[1757018990843,0.291,4310.5,4310.4,13.80045754]
[1757018992167,0.7315,4310.5,4310.4,13.80045754]
[1757018994641,0.291,4310.5,4310.4,13.80045754]
[1757018994979,0.001,4310.5,4310.4,17.56245754]
[1757018995275,0.001,4310.5,4310.4,18.03625754]
[1757018995583,0.001,4311.0,4310.7,3.11180884]
[1757018995748,0.001,4311.0,4310.9,12.00635685]
[1757018995953,0.001,4311.0,4310.9,12.31355685]
[1757018996188,0.001,4311.0,4310.9,13.451124]
[1757018998290,0.05,4311.8,4311.4,0.792]
[1757018998475,0.4405,4312.5,4312.4,2.31889435]
[1757018998675,0.29,4312.5,4312.4,14.58354998]
[1757018998898,0.4405,4312.9,4312.7,2.31873304]
[1757018999059,0.4775,4313.5,4312.7,12.08138867]
[1757018999261,0.7555,4312.8,4312.7,12.19738867]
[1757018999487,0.7555,4312.8,4312.7,12.67488867]
[1757019001264,1.233,4312.8,4312.7,8.80688867]
[1757019001483,1.233,4312.8,4312.7,6.77923304]
[1757019002003,0.7555,4312.8,4312.7,6.77923304]
[1757019002896,1.233,4312.8,4312.7,6.77923304]
[1757019003492,0.315,4312.8,4312.7,6.77923304]
[1757019003793,0.7555,4312.8,4312.7,6.77923304]
[1757019004173,0.7555,4312.8,4312.7,2.91223304]
[1757019004389,0.7555,4312.8,4312.7,6.77923304]
[1757019004791,0.7555,4312.8,4312.7,2.91223304]
[1757019005069,0.7555,4312.8,4312.7,6.77923304]
[1757019005289,0.7555,4312.8,4312.7,4.68493161]
[1757019005490,0.7555,4312.8,4312.7,0.5935]
[1757019005707,1.233,4312.8,4312.7,6.30173304]
[1757019006010,1.233,4312.8,4312.7,3.983]
[1757019006507,1.233,4312.8,4312.7,0.116]
[1757019006712,1.233,4312.8,4312.7,3.983]
[1757019007170,1.233,4312.8,4312.7,3.867]
[1757019010209,1.233,4312.8,4312.7,6.18573304]
[1757019010574,1.233,4312.8,4312.7,3.867]
[1757019012967,1.233,4312.8,4312.5,3.13205288]
[1757019013204,0.9302,4312.7,4312.5,0.81321312]
[1757019013387,0.6135016,4312.6,4312.4,1.71]
[1757019013595,4.06144217,4312.5,4312.4,1.71]
[1757019013775,1.7426016,4312.5,4312.4,5.576]
[1757019014311,0.8124016,4312.5,4312.4,5.576]
[1757019014512,0.4975016,4312.5,4312.4,9.34939435]
[1757019014679,0.025,4312.8,4312.7,2.31873304]
[1757019014876,0.52279136,4312.8,4312.7,6.18473304]
[1757019015183,0.52279136,4312.8,4312.7,6.49173304]
[1757019015512,0.025,4312.8,4312.7,8.95106134]
[1757019015718,0.025,4312.8,4312.7,9.38336134]
[1757019015874,0.025,4312.8,4312.7,15.87000695]
[1757019016273,0.52352352,4312.8,4312.7,16.30230695]
[1757019016474,0.52352352,4312.8,4312.7,15.87000695]
[1757019016712,0.025,4312.8,4312.7,15.87000695]
[1757019016914,0.025,4312.8,4312.7,16.30230695]
[1757019017498,0.52398757,4312.8,4312.7,15.87000695]
[1757019018926,0.52398757,4312.8,4312.7,16.39399452]
[1757019019229,0.83888757,4312.8,4312.7,2.95872061]
[1757019019436,1.30618757,4312.8,4312.7,6.30073304]
[1757019020902,1.30618757,4312.8,4312.7,3.982]
[1757019021218,1.76908757,4312.8,4312.7,3.983]
[1757019021400,1.30618757,4312.8,4312.7,3.983]
[1757019021719,1.76908757,4312.8,4312.7,3.983]
[1757019022489,1.76908757,4312.8,4312.7,0.116]
[1757019022724,1.76908757,4312.8,4312.7,3.983]
[1757019022923,4.08776685,4312.8,4312.7,0.116]
[1757019023092,4.08776685,4312.8,4312.7,3.867]
[1757019023288,1.42218757,4312.8,4312.7,3.867]
[1757019023902,1.30618757,4312.8,4312.7,3.867]
[1757019024830,1.30618757,4312.8,4312.7,7.67512037]
[1757019024831,0.52398757,4312.8,4312.7,7.67512037]
[1757019024999,0.52498757,4312.8,4312.7,8.08423304]
[1757019025325,0.52498757,4312.8,4312.7,7.65193304]
[1757019025697,0.52498757,4312.8,4312.7,8.08423304]
[1757019026726,0.52498757,4312.8,4312.7,7.65193304]
[1757019031331,0.52498757,4312.8,4312.7,8.08423304]
[1757019031945,0.52498757,4312.8,4312.7,7.96823304]
[1757019032123,0.52498757,4312.8,4312.7,8.08423304]
[1757019032446,0.52650118,4312.8,4312.7,8.08423304]
[1757019033331,0.026,4312.8,4312.7,8.08423304]
[1757019033951,0.026,4312.8,4312.7,7.65193304]
[1757019034539,0.026,4312.8,4312.7,8.08423304]
[1757019035727,0.026,4312.8,4312.7,8.17716995]
[1757019037053,0.026,4312.8,4312.7,7.74486995]
[1757019039043,0.026,4312.8,4312.7,8.18896995]
[1757019041374,0.026,4312.8,4312.7,8.19096995]
[1757019042951,0.026,4312.8,4312.7,15.10991556]
[1757019043159,0.026,4312.8,4312.7,8.19096995]
[1757019043355,0.026,4312.8,4312.7,4.32196995]
[1757019043654,0.026,4312.8,4312.7,8.18996995]
[1757019046442,0.026,4312.8,4312.7,7.74586995]
[1757019047163,0.026,4312.8,4312.7,7.74486995]
[1757019048374,0.026,4312.8,4312.7,8.98096995]
[1757019049434,0.3205,4312.8,4312.7,5.92683691]
[1757019049688,0.3205,4312.8,4312.7,6.39466995]
[1757019049689,1.2654,4312.8,4312.7,6.39466995]
[1757019049980,1.2654,4312.8,4312.7,6.39566995]
[1757019050263,1.2654,4312.8,4312.7,0.116]
[1757019050451,1.2654,4312.8,4312.7,6.30273304]
[1757019052541,1.2654,4312.8,4312.7,3.983]
[1757019052736,1.2654,4312.8,4312.7,6.30173304]
[1757019053000,0.7807,4312.8,4312.7,6.30173304]
[1757019053276,0.026,4312.8,4312.7,8.9017952]
[1757019053473,0.026,4312.8,4312.7,9.59880746]
[1757019053682,0.026,4312.8,4312.7,9.48880746]
[1757019053880,0.001,4313.3,4313.2,2.31846424]
[1757019054192,0.001,4313.3,4313.2,8.01546424]
[1757019054394,0.001,4313.3,4313.2,9.10241066]
[1757019054596,0.001,4313.3,4313.2,9.59201066]
[1757019056572,0.001,4313.3,4313.2,10.82811066]
[1757019059251,0.001,4313.3,4313.2,10.38401066]
[1757019059567,0.001,4313.3,4313.2,8.02146424]
[1757019059568,0.7557,4313.3,4313.2,8.02146424]
[1757019059752,0.2955,4313.3,4313.2,8.02146424]
[1757019059951,0.7557,4313.3,4313.2,8.02146424]
[1757019061268,0.2955,4313.3,4313.2,8.02146424]
[1757019061778,0.001,4313.3,4313.2,10.03256424]
[1757019061961,0.001,4313.3,4313.2,12.41976896]
[1757019063677,0.001,4313.3,4313.2,18.29562501]
[1757019064674,0.001,4313.3,4313.2,21.29562501]